bitfinex/quotes_SOLUSD_20241208
["timestamp","ask_amount","ask_price","bid_price","bid_amount"]
[1733672950284,12.79842408,237.25,237.18,12.79842408]
[1733672950563,12.79842408,237.25,237.19,12.79842408]
[1733672951460,12.79842408,237.26,237.2,12.79842408]
[1733672952135,12.79842408,237.25,237.19,12.79842408]
[1733672954062,12.79842408,237.26,237.2,12.79842408]
[1733672954570,12.79842408,237.27,237.2,12.79842408]
[1733672954934,12.79842408,237.27,237.21,12.79842408]
[1733672955362,12.79842408,237.29,237.22,12.79842408]
[1733672955561,12.79842408,237.28,237.21,12.79842408]
[1733672955952,12.79842408,237.27,237.21,12.79842408]
[1733672958068,12.79842408,237.28,237.21,12.79842408]
[1733672958576,12.79842408,237.27,237.21,12.79842408]
[1733672959153,12.79842408,237.27,237.2,12.79842408]
[1733672959357,12.79842408,237.25,237.18,12.79842408]
[1733672959661,12.79842408,237.25,237.19,0.12549]
[1733672959862,12.79842408,237.26,237.19,12.79842408]
[1733672960161,12.79842408,237.25,237.19,12.79842408]
[1733672960487,12.79842408,237.26,237.19,12.79842408]
[1733672960854,3.1606,237.3,237.21,12.79842408]
[1733672961185,12.79842408,237.29,237.22,12.79842408]
[1733672962699,12.79842408,237.28,237.21,12.79842408]
[1733672963196,12.79842408,237.27,237.2,12.79842408]
[1733672963765,12.79842408,237.26,237.2,12.79842408]
[1733672964586,12.79842408,237.27,237.2,12.79842408]
[1733672967189,8.19132529,237.27,237.21,8.19132529]
[1733672968997,8.19132529,237.28,237.21,8.19132529]
[1733672970182,8.19132529,237.28,237.22,8.19132529]
[1733672971112,8.19132529,237.28,237.21,8.19132529]
[1733672971412,8.19132529,237.25,237.19,8.19132529]
[1733672972483,8.19132529,237.25,237.16,0.12549]
[1733672972484,8.19132529,237.29,237.22,8.19132529]
[1733672973895,8.19132529,237.27,237.2,8.19132529]
[1733672974098,8.19132529,237.28,237.21,8.19132529]
[1733672975101,8.19132529,237.27,237.2,8.19132529]
[1733672975505,8.19132529,237.26,237.19,8.19132529]
[1733672976695,8.19132529,237.25,237.18,8.19132529]
[1733672978609,8.19132529,237.25,237.16,0.12549]
[1733672978811,8.19132529,237.23,237.16,8.31681529]
[1733672980521,8.19132529,237.21,237.15,8.19132529]
[1733672981020,8.19132529,237.24,237.17,8.19132529]
[1733672981523,8.19132529,237.24,237.18,8.19132529]
[1733672982529,8.19132529,237.26,237.19,8.19132529]
[1733672982697,8.19132529,237.25,237.18,8.19132529]
[1733672982889,8.19132529,237.24,237.17,8.19132529]
[1733672983089,8.19132529,237.23,237.16,8.19132529]
[1733672983891,8.19132529,237.22,237.16,8.19132529]
[1733672984505,8.19132529,237.21,237.15,8.19132529]
[1733672984700,8.19132529,237.21,237.14,8.31681529]
[1733672985091,8.19132529,237.2,237.14,8.19132529]
[1733672985292,8.19132529,237.21,237.14,8.19132529]
[1733672986532,8.19132529,237.23,237.16,8.19132529]
[1733672986751,8.19132529,237.24,237.17,8.19132529]
[1733672987713,8.19132529,237.24,237.13,1.5635]
[1733672987714,8.19132529,237.21,237.13,1.5635]
[1733672987911,8.19132529,237.18,237.13,1.5635]
[1733672988113,8.19132529,237.16,237.13,1.5635]
[1733672988318,8.19132529,237.15,237.08,8.19132529]
[1733672988749,8.19132529,237.16,237.09,8.19132529]
[1733672989250,8.19132529,237.16,237.1,8.19132529]
[1733672989446,8.19132529,237.17,237.1,8.19132529]
[1733672990422,8.19132529,237.16,237.1,8.19132529]
[1733672990926,8.19132529,237.16,237.07,1.575]
[1733672991130,8.19132529,237.14,237.07,29.76632529]
[1733672991345,8.19132529,237.14,237.07,9.76632529]
[1733672991756,8.19132529,237.14,237.08,8.19132529]
[1733672992123,8.19132529,237.15,237.08,8.19132529]
[1733672992955,8.19132529,237.13,237.07,1.575]
[1733672993465,3.1622,237.18,237.08,8.19132529]
[1733672993754,8.19132529,237.15,237.08,8.19132529]
[1733672994260,8.19132529,237.16,237.09,8.19132529]
[1733672994945,8.19132529,237.14,237.01,2.14257986]
[1733672995141,8.19132529,237.11,237.04,8.19132529]
[1733672995942,8.19132529,237.1,237.03,8.19132529]
[1733672996538,8.19132529,237.09,237.02,8.19132529]
[1733672996735,8.19132529,237.11,237.04,8.19132529]
[1733672997229,11.35432529,237.12,237.05,8.19132529]
[1733672997429,8.19132529,237.15,237.08,8.19132529]
[1733672999051,8.19132529,237.15,237.09,8.19132529]
[1733672999242,8.19132529,237.15,237.08,8.19132529]
[1733672999441,8.19132529,237.14,237.08,8.19132529]
[1733672999866,8.19132529,237.13,237.07,8.19132529]
[1733673000157,8.19132529,237.11,237.04,8.19132529]
[1733673000368,8.19132529,237.1,237.04,8.19132529]
[1733673000734,20.0,237.15,237.04,8.19132529]
[1733673000942,8.19132529,237.13,237.07,8.19132529]
[1733673001137,8.19132529,237.14,237.07,8.19132529]
[1733673001844,8.19132529,237.11,237.04,8.19132529]
[1733673002950,8.19132529,237.09,237.01,1.51]
[1733673003162,8.19132529,237.09,237.02,8.19132529]
[1733673003934,8.19132529,237.12,237.05,8.19132529]
[1733673004137,8.19132529,237.14,237.07,8.19132529]
[1733673004542,8.19132529,237.14,237.02,0.12549]
[1733673004543,20.0,237.16,237.08,8.19132529]
[1733673004751,8.19132529,237.15,237.08,8.19132529]
[1733673005081,20.0,237.18,237.1,8.19132529]
[1733673005371,3.162,237.19,237.12,8.19132529]
[1733673005556,8.19132529,237.18,237.12,8.19132529]
[1733673006347,8.19132529,237.17,237.11,8.19132529]
[1733673006549,8.19132529,237.17,237.09,1.5994]
[1733673006550,8.19132529,237.16,237.09,9.79072529]
[1733673006859,8.19132529,237.16,237.09,1.5994]
[1733673007367,8.19132529,237.16,237.09,9.79072529]
[1733673009162,8.19132529,237.16,237.1,8.19132529]
[1733673010881,8.19132529,237.13,237.04,0.12549]
[1733673011049,8.19132529,237.13,237.06,8.19132529]
[1733673011784,8.19132529,237.12,237.04,8.19132529]
[1733673012382,8.19132529,237.11,237.03,1.5994]
[1733673012678,8.19132529,237.12,237.05,8.19132529]
[1733673013056,11.35402529,237.14,237.06,8.19132529]
[1733673013375,8.19132529,237.16,237.09,8.19132529]
[1733673013876,28.19132529,237.17,237.1,8.19132529]
[1733673014456,31.96820929,237.16,237.09,8.19132529]
[1733673014778,8.19132529,237.15,237.08,8.19132529]
[1733673015572,8.19132529,237.15,237.07,8.19132529]
[1733673016468,20.0,237.17,237.07,8.19132529]
[1733673016781,8.19132529,237.16,237.08,8.19132529]
[1733673017167,28.19132529,237.17,237.1,8.19132529]
[1733673017571,23.1622,237.18,237.11,8.19132529]
[1733673017751,23.776884,237.17,237.11,8.19132529]
[1733673017956,31.96820929,237.17,237.1,8.19132529]
[1733673018152,23.776884,237.17,237.1,8.19132529]
[1733673018375,31.96820929,237.17,237.1,8.19132529]
[1733673020280,8.19132529,237.15,237.08,8.19132529]
[1733673020583,8.19132529,237.14,237.06,8.19132529]
[1733673020969,8.19132529,237.12,237.03,1.5994]
[1733673021286,8.19132529,237.12,237.04,8.19132529]
[1733673021654,8.19132529,237.11,237.04,8.19132529]
[1733673022180,8.19132529,237.11,236.93,5.0]
[1733673022181,8.19132529,237.09,237.02,8.19132529]
[1733673022389,31.96820929,237.1,237.03,8.19132529]
[1733673022553,3.1631,237.11,237.05,8.19132529]
[1733673023258,3.1631,237.11,237.06,8.19132529]
[1733673023460,3.1631,237.11,237.07,8.19132529]
[1733673023869,3.1624,237.16,237.1,8.19132529]
[1733673024055,3.1624,237.16,237.11,8.19132529]
[1733673024255,3.1624,237.16,237.12,8.19132529]
[1733673026389,23.776884,237.17,237.11,8.19132529]
[1733673027564,31.96820929,237.17,237.1,8.19132529]
[1733673027883,8.19132529,237.16,237.09,8.19132529]
[1733673028863,26.939184,237.17,237.11,8.19132529]
[1733673029063,35.13050929,237.17,237.1,8.19132529]
[1733673029279,35.13070929,237.15,237.05,20.0]
[1733673029466,8.19132529,237.13,237.06,8.19132529]
[1733673029673,8.19132529,237.12,237.05,8.19132529]
[1733673030587,8.19132529,237.11,237.04,8.19132529]
[1733673030888,8.19132529,237.12,237.06,8.19132529]
[1733673031991,8.19132529,237.11,237.04,8.19132529]
[1733673032195,8.19132529,237.12,237.06,8.19132529]
[1733673032361,8.19132529,237.12,237.05,8.19132529]
[1733673033674,3.1625,237.15,237.06,8.19132529]
[1733673033675,43.776884,237.14,237.06,8.19132529]
[1733673033866,8.19132529,237.12,237.06,8.19132529]
[1733673035574,8.19132529,237.12,237.05,8.19132529]
[1733673036499,8.19132529,237.11,237.04,8.19132529]
[1733673037467,8.19132529,237.12,237.05,8.19132529]
[1733673041099,8.19132529,237.11,237.04,8.19132529]
[1733673041920,8.19132529,237.1,237.03,8.19132529]
[1733673043187,8.19132529,237.11,237.04,8.19132529]
[1733673044522,11.35412529,237.13,237.06,8.19132529]
[1733673044821,23.776884,237.12,237.06,8.19132529]
[1733673045123,23.776884,237.12,237.07,8.19132529]
[1733673045620,3.1628,237.13,237.08,8.19132529]
[1733673046024,20.0,237.18,237.11,8.19132529]
[1733673046327,8.19132529,237.18,237.11,8.19132529]
[1733673047119,8.19132529,237.17,237.1,8.19132529]
[1733673047323,8.19132529,237.16,237.09,8.19132529]
[1733673047629,8.19132529,237.13,237.04,0.12549]
[1733673047918,8.19132529,237.13,237.06,8.19132529]
[1733673049093,8.19132529,237.13,237.07,8.19132529]
[1733673049324,23.776884,237.13,237.08,8.19132529]
[1733673049524,8.19132529,237.17,237.1,8.19132529]
[1733673050298,8.19132529,237.16,237.09,8.19132529]
[1733673052225,8.19132529,237.16,237.1,8.19132529]
[1733673053218,8.19132529,237.15,237.08,8.19132529]
[1733673053425,8.19132529,237.14,237.07,8.19132529]
[1733673054098,8.19132529,237.15,237.08,8.19132529]
[1733673054422,3.1622,237.18,237.09,8.19132529]
[1733673054423,8.19132529,237.16,237.09,8.19132529]
[1733673057516,23.1622,237.18,237.12,8.19132529]
[1733673058030,3.1617,237.22,237.16,8.19132529]
[1733673058712,11.35302529,237.22,237.15,8.19132529]
[1733673060423,3.1606,237.29,237.21,8.19132529]
[1733673060619,3.1606,237.29,237.15,6.4609]
[1733673060620,3.1606,237.29,237.24,8.19132529]
[1733673060923,11.35192529,237.29,237.15,6.4609]
[1733673061124,8.19132529,237.27,237.2,8.19132529]
[1733673062215,8.19132529,237.27,237.21,8.19132529]
[1733673063502,8.19132529,237.27,237.2,8.19132529]
[1733673063901,20.0,237.32,237.21,8.19132529]
[1733673064125,23.776884,237.31,237.22,8.19132529]
[1733673064433,8.19132529,237.28,237.18,20.0]
[1733673064597,8.19132529,237.28,237.22,8.19132529]
[1733673064794,23.776884,237.31,237.22,8.19132529]
[1733673065001,8.19132529,237.29,237.23,8.19132529]
[1733673065335,8.19132529,237.3,237.24,8.19132529]
[1733673065511,6.6015,237.42,237.28,8.19132529]
[1733673065829,8.19132529,237.33,237.26,8.19132529]
[1733673066216,3.1596,237.37,237.27,8.19132529]
[1733673066701,8.19132529,237.33,237.26,8.19132529]
[1733673067123,3.1596,237.37,237.26,8.19132529]
[1733673067320,8.19132529,237.32,237.26,8.19132529]
[1733673067601,3.1596,237.37,237.29,8.19132529]
[1733673067802,8.19132529,237.35,237.29,8.19132529]
[1733673068016,8.19132529,237.35,237.28,8.19132529]
[1733673068431,3.1596,237.37,237.28,8.19132529]
[1733673068602,8.19132529,237.35,237.28,8.19132529]
[1733673068934,8.19132529,237.32,237.21,23.902374]
[1733673069138,8.19132529,237.31,237.21,0.12549]
[1733673069425,8.19132529,237.28,237.2,20.0]
[1733673069641,8.19132529,237.27,237.2,28.19132529]
[1733673069805,3.1598,237.35,237.2,28.19132529]
[1733673070124,3.1598,237.35,237.22,8.19132529]
[1733673070125,8.19132529,237.29,237.22,8.19132529]
[1733673070314,8.19132529,237.3,237.24,8.19132529]
[1733673071301,8.19132529,237.3,237.23,8.19132529]
[1733673072309,8.19132529,237.3,237.24,8.19132529]
[1733673073106,8.19132529,237.34,237.27,8.19132529]
[1733673073311,8.19132529,237.32,237.26,8.19132529]
[1733673074325,3.1598,237.35,237.26,8.19132529]
[1733673074326,8.19132529,237.33,237.26,8.19132529]
[1733673074895,3.1598,237.35,237.26,8.19132529]
[1733673075116,8.19132529,237.32,237.26,8.19132529]
[1733673075524,8.19132529,237.32,237.25,8.19132529]
[1733673075729,8.19132529,237.31,237.25,8.19132529]
[1733673075937,3.1598,237.35,237.25,8.19132529]
[1733673076134,8.19132529,237.32,237.25,8.19132529]
[1733673076541,8.19132529,237.31,237.25,8.19132529]
[1733673077252,8.19132529,237.31,237.24,8.19132529]
[1733673077458,8.19132529,237.32,237.25,8.19132529]
[1733673077752,3.1598,237.35,237.25,8.19132529]
[1733673077753,8.19132529,237.31,237.25,8.19132529]
[1733673077949,8.19132529,237.3,237.24,8.19132529]
[1733673078454,56.54218516,237.36,237.2,0.12549]
[1733673078455,8.19132529,237.29,237.2,0.12549]
[1733673078616,8.19132529,237.26,237.2,8.31681529]
[1733673078816,8.19132529,237.3,237.24,8.19132529]
[1733673079018,3.1603,237.32,237.25,8.19132529]
[1733673079219,23.776884,237.36,237.25,8.19132529]
[1733673079417,26.936684,237.36,237.25,8.19132529]
[1733673080420,8.19132529,237.3,237.24,8.19132529]
[1733673080727,8.19132529,237.29,237.23,8.19132529]
[1733673081433,8.19132529,237.29,237.2,0.12549]
[1733673081434,8.19132529,237.3,237.24,8.19132529]
[1733673081951,3.1598,237.36,237.2,24.027864]
[1733673082118,11.35112529,237.36,237.29,8.19132529]
[1733673082317,3.1593,237.4,237.28,1.5103]
[1733673082523,8.68645939,237.38,237.32,8.19132529]
[1733673082729,8.19132529,237.37,237.31,8.19132529]
[1733673083126,8.19132529,237.36,237.3,8.19132529]
[1733673083749,8.19132529,237.32,237.28,1.5103]
[1733673084258,8.19132529,237.33,237.28,1.5103]
[1733673084454,8.19132529,237.36,237.29,8.19132529]
[1733673084627,8.19132529,237.35,237.29,8.19132529]
[1733673085123,8.19132529,237.34,237.28,1.5103]
[1733673085450,8.19132529,237.32,237.28,1.5103]
[1733673086230,8.19132529,237.35,237.28,9.70162529]
[1733673086445,8.19132529,237.34,237.28,1.5103]
[1733673086830,8.19132529,237.33,237.28,1.5103]
[1733673088067,8.19132529,237.34,237.28,1.5103]
[1733673088549,8.19132529,237.34,237.28,9.70162529]
[1733673088857,20.4951341,237.38,237.29,8.19132529]
[1733673088858,8.19132529,237.35,237.29,8.19132529]
[1733673089043,0.4951341,237.38,237.3,8.19132529]
[1733673089044,8.19132529,237.36,237.3,8.19132529]
[1733673090323,8.19132529,237.35,237.29,8.19132529]
[1733673091654,0.4951341,237.38,237.29,8.19132529]
[1733673091826,8.19132529,237.36,237.3,8.19132529]
[1733673093333,0.4951341,237.38,237.32,8.19132529]
[1733673093750,8.68645939,237.38,237.32,8.19132529]
[1733673094126,0.4951341,237.38,237.34,8.19132529]
[1733673094330,0.4951341,237.38,237.36,8.19132529]
[1733673094702,0.4951341,237.38,237.35,8.19132529]
[1733673095720,0.4951341,237.38,237.34,8.19132529]
[1733673098360,0.4951341,237.38,237.36,8.19132529]
[1733673098572,0.4951341,237.38,237.34,8.19132529]
[1733673099365,0.4951341,237.38,237.3,0.63188625]
[1733673099367,0.4951341,237.38,237.31,0.12549]
[1733673099543,0.4951341,237.38,237.33,8.19132529]
[1733673100160,0.4951341,237.38,237.34,8.19132529]
[1733673100356,0.4951341,237.38,237.36,8.19132529]
[1733673101968,0.4951341,237.38,237.35,8.19132529]
[1733673102146,0.4951341,237.38,237.34,8.19132529]
[1733673102545,0.4951341,237.38,237.33,8.19132529]
[1733673104373,0.4951341,237.38,237.34,8.19132529]
[1733673105142,0.4951341,237.38,237.37,8.19132529]
[1733673106466,0.4951341,237.38,237.37,8.31681529]
[1733673106959,0.4951341,237.38,237.37,0.12549]
[1733673107176,0.4951341,237.38,237.37,8.31681529]
[1733673107354,0.4951341,237.38,237.37,32.09369929]
[1733673108256,0.4951341,237.38,237.37,8.31681529]
[1733673108946,0.4951341,237.38,237.37,32.09369929]
[1733673110856,0.4951341,237.62,237.47,0.12549]
[1733673111171,8.19132529,237.56,237.49,8.19132529]
[1733673111368,8.19132529,237.57,237.51,8.19132529]
[1733673112372,3.1564,237.61,237.52,8.19132529]
[1733673112751,8.19132529,237.58,237.51,8.19132529]
[1733673113070,8.19132529,237.57,237.5,8.19132529]
[1733673113272,3.1564,237.61,237.5,8.19132529]
[1733673113501,8.19132529,237.57,237.5,8.19132529]
[1733673113658,8.19132529,237.55,237.49,8.19132529]
[1733673114355,8.19132529,237.54,237.47,1.64]
[1733673114596,8.19132529,237.54,237.47,9.83132529]
[1733673115286,8.19132529,237.53,237.47,9.83132529]
[1733673115471,3.1569,237.58,237.49,8.19132529]
[1733673115674,3.1569,237.58,237.51,8.19132529]
[1733673115873,8.19132529,237.58,237.51,8.19132529]
[1733673116194,8.19132529,237.57,237.51,8.19132529]
[1733673116693,8.19132529,237.58,237.52,8.19132529]
[1733673116864,8.19132529,237.57,237.51,8.19132529]
[1733673117867,3.6514341,237.62,237.52,8.19132529]
[1733673118065,8.19132529,237.58,237.52,8.19132529]
[1733673118671,3.6514341,237.62,237.53,8.19132529]
[1733673118875,3.6514341,237.62,237.55,8.19132529]
[1733673119389,8.19132529,237.61,237.55,8.19132529]
[1733673119600,8.19132529,237.61,237.54,8.19132529]
[1733673120386,8.19132529,237.6,237.54,8.19132529]
[1733673120963,8.19132529,237.61,237.54,8.19132529]
[1733673121476,8.19132529,237.61,237.55,8.19132529]
[1733673121673,3.6514341,237.62,237.55,8.19132529]
[1733673121875,8.19132529,237.61,237.54,8.19132529]
[1733673122076,8.19132529,237.6,237.53,8.19132529]
[1733673122279,3.6514341,237.62,237.53,8.19132529]
[1733673122468,0.4951341,237.62,237.54,8.31681529]
[1733673122666,0.4951341,237.62,237.56,8.19132529]
[1733673122885,8.68645939,237.62,237.56,8.19132529]
[1733673123282,8.19132529,237.61,237.53,23.902374]
[1733673123594,0.4951341,237.62,237.47,1.64]
[1733673123796,8.19132529,237.58,237.52,8.19132529]
[1733673123988,8.19132529,237.59,237.52,8.19132529]
[1733673124294,0.4951341,237.62,237.57,8.19132529]
[1733673124595,8.19132529,237.61,237.51,6.2692]
[1733673124789,8.19132529,237.61,237.54,8.19132529]
[1733673125094,0.4951341,237.62,237.55,31.96820929]
[1733673125284,8.68645939,237.62,237.55,32.09369929]
[1733673126064,8.68645939,237.62,237.55,8.19132529]
[1733673126264,8.19132529,237.58,237.52,23.902374]
[1733673126495,8.19132529,237.6,237.54,8.19132529]
[1733673128603,0.4951341,237.62,237.55,23.902374]
[1733673128907,8.68645939,237.62,237.55,32.09369929]
[1733673130373,0.4951341,237.62,237.55,32.09369929]
[1733673130573,8.68645939,237.62,237.55,32.09369929]
[1733673131598,0.4951341,237.62,237.55,33.60459929]
[1733673131903,8.68645939,237.62,237.56,8.19132529]
[1733673132282,0.4951341,237.62,237.61,8.19132529]
[1733673133386,0.4951341,237.62,237.61,8.31681529]
[1733673134199,0.4951341,237.62,237.58,0.63114033]
[1733673134396,0.4951341,237.62,237.61,32.09369929]
[1733673135277,0.4951341,237.62,237.61,32.72471316]
[1733673137189,0.4951341,237.62,237.61,24.53338787]
[1733673137392,0.4951341,237.62,237.61,32.09369929]
[1733673138391,0.4951341,237.62,237.61,23.902374]
[1733673138714,0.4951341,237.62,237.61,32.09369929]
[1733673139293,0.4951341,237.62,237.61,32.72467863]
[1733673139603,0.4951341,237.62,237.61,39.24485863]
[1733673140195,0.4951341,237.62,237.61,30.80255334]
[1733673140419,0.4951341,237.62,237.61,38.99387863]
[1733673143897,0.4951341,237.62,237.61,32.72467863]
[1733673144524,0.4951341,237.62,237.59,20.0]
[1733673144739,0.4951341,237.62,237.59,20.63113588]
[1733673144887,0.4951341,237.62,237.6,8.19132529]
[1733673145618,0.4951341,237.62,237.59,20.63113588]
[1733673145811,0.4951341,237.62,237.6,8.19132529]
[1733673146319,0.4951341,237.62,237.56,6.4364]
[1733673146320,0.4951341,237.62,237.56,23.776884]
[1733673146623,0.4951341,237.62,237.56,31.96820929]
[1733673146922,0.4951341,237.62,237.57,8.19132529]
[1733673148100,0.4951341,237.62,237.55,1.5109]
[1733673148101,8.68645939,237.62,237.55,9.70222529]
[1733673148402,8.19132529,237.61,237.54,8.19132529]
[1733673148816,8.68645939,237.62,237.55,8.19132529]
[1733673149500,8.19132529,237.6,237.54,8.19132529]
[1733673149703,8.19132529,237.6,237.51,0.63128705]
[1733673149903,8.19132529,237.57,237.51,8.19132529]
[1733673150131,8.19132529,237.58,237.51,8.19132529]
[1733673150498,8.19132529,237.55,237.44,8.0109]
[1733673150717,8.19132529,237.53,237.46,8.19132529]
[1733673150925,8.19132529,237.51,237.38,11.16300683]
[1733673151141,8.19132529,237.51,237.44,8.19132529]
[1733673151859,8.19132529,237.5,237.43,8.19132529]
[1733673152147,8.19132529,237.52,237.45,8.19132529]
[1733673152321,8.19132529,237.56,237.49,8.19132529]
[1733673153818,8.19132529,237.55,237.48,8.19132529]
[1733673154031,12.9777,237.61,237.39,23.902374]
[1733673154032,8.19132529,237.53,237.42,0.63150663]
[1733673154238,35.92180116,237.6,237.38,1.5745]
[1733673154239,8.19132529,237.48,237.38,1.5745]
[1733673154547,8.19132529,237.48,237.41,8.19132529]
[1733673155034,8.19132529,237.49,237.42,8.19132529]
[1733673155221,12.77602452,237.49,237.42,12.77602452]
[1733673155541,12.77602452,237.52,237.45,12.77602452]
[1733673156048,12.77602452,237.51,237.44,12.77602452]
[1733673156618,12.77602452,237.5,237.43,12.77602452]
[1733673156812,12.77602452,237.48,237.42,12.77602452]
[1733673157061,12.77602452,237.46,237.4,12.77602452]
[1733673157422,12.77602452,237.47,237.41,12.77602452]
[1733673157838,12.77602452,237.42,237.32,2.20620461]
[1733673158048,12.77602452,237.42,237.36,12.77602452]
[1733673158453,12.77602452,237.43,237.36,12.77602452]
[1733673158660,12.77602452,237.44,237.37,12.77602452]
[1733673159135,12.77602452,237.44,237.38,12.77602452]
[1733673160035,12.77602452,237.42,237.35,12.77602452]
[1733673160221,12.77602452,237.43,237.36,12.77602452]
[1733673160654,12.77602452,237.41,237.34,12.77602452]
[1733673160958,12.77602452,237.48,237.32,1.5745]
[1733673160959,12.77602452,237.4,237.33,12.77602452]
[1733673161267,12.77602452,237.39,237.32,14.35052452]
[1733673161448,12.77602452,237.38,237.31,12.77602452]
[1733673162129,12.77602452,237.39,237.32,12.77602452]
[1733673162550,12.77602452,237.38,237.31,12.77602452]
[1733673162757,12.77602452,237.37,237.31,12.77602452]
[1733673163528,12.77602452,237.4,237.33,12.77602452]
[1733673163729,12.77602452,237.41,237.34,12.77602452]
[1733673164850,12.77602452,237.41,237.35,12.77602452]
[1733673165051,12.77602452,237.45,237.39,12.77602452]
[1733673165229,12.77602452,237.46,237.39,12.77602452]
[1733673166751,12.77602452,237.45,237.38,12.77602452]
[1733673167669,12.77602452,237.46,237.4,12.77602452]
[1733673168861,12.77602452,237.44,237.38,12.77602452]
[1733673169860,12.77602452,237.45,237.39,12.77602452]
[1733673170959,12.77602452,237.44,237.38,12.77602452]
[1733673171670,12.77602452,237.44,237.37,12.77602452]
[1733673171840,12.77602452,237.42,237.36,12.77602452]
[1733673172039,12.77602452,237.44,237.37,12.77602452]
[1733673172238,12.77602452,237.45,237.39,12.77602452]
[1733673172440,12.77602452,237.46,237.4,12.77602452]
[1733673172875,12.77602452,237.46,237.39,12.77602452]
[1733673173365,20.0,237.48,237.4,12.77602452]
[1733673173582,12.77602452,237.5,237.43,12.77602452]
[1733673173865,3.1572,237.55,237.47,12.77602452]
[1733673174056,15.93322452,237.55,237.49,12.77602452]
[1733673174461,12.77602452,237.54,237.48,12.77602452]
[1733673175641,12.77602452,237.54,237.47,12.77602452]
[1733673176162,12.77602452,237.53,237.46,12.77602452]
[1733673176739,12.77602452,237.51,237.44,12.77602452]
[1733673177036,12.77602452,237.49,237.42,12.77602452]
[1733673178138,12.77602452,237.5,237.43,12.77602452]
[1733673178758,12.77602452,237.49,237.42,12.77602452]
[1733673178964,3.1572,237.55,237.37,0.63159404]
[1733673178965,12.77602452,237.48,237.41,12.77602452]
[1733673179247,12.77602452,237.47,237.4,12.77602452]
[1733673179453,12.77602452,237.46,237.39,12.77602452]
[1733673180069,12.77602452,237.46,237.38,0.12549]
[1733673180366,12.77602452,237.45,237.38,12.77602452]
[1733673180871,12.77602452,237.46,237.39,12.77602452]
[1733673181486,12.77602452,237.47,237.39,12.77602452]
[1733673182165,12.77602452,237.46,237.39,12.77602452]
[1733673182678,9.4716,237.55,237.38,12.77602452]
[1733673182889,12.77602452,237.44,237.37,12.77602452]
[1733673183585,12.77602452,237.46,237.39,12.77602452]
[1733673183791,12.77602452,237.47,237.4,12.77602452]
[1733673184992,9.656,237.48,237.38,12.77602452]
[1733673184993,12.77602452,237.45,237.38,12.77602452]
[1733673185289,12.77602452,237.46,237.39,12.77602452]
[1733673185584,12.77602452,237.47,237.4,12.77602452]
[1733673186091,6.4978,237.48,237.42,12.77602452]
[1733673186407,12.77602452,237.51,237.44,12.77602452]
[1733673186690,15.93362452,237.52,237.45,12.77602452]
[1733673187754,12.77602452,237.53,237.46,12.77602452]
[1733673187971,12.77602452,237.54,237.47,12.77602452]
[1733673188887,12.77602452,237.51,237.44,12.77602452]
[1733673189809,12.77602452,237.5,237.43,12.77602452]
[1733673190111,12.77602452,237.47,237.4,12.77602452]
[1733673190791,12.77602452,237.44,237.37,12.77602452]
[1733673191984,12.77602452,237.44,237.38,0.12549]
[1733673192185,12.77602452,237.45,237.38,12.77602452]
[1733673192897,12.77602452,237.44,237.37,12.90151452]
[1733673194585,12.77602452,237.45,237.39,12.77602452]
[1733673194773,12.77602452,237.46,237.39,12.77602452]
[1733673195897,12.77602452,237.45,237.39,12.77602452]
[1733673196607,12.77602452,237.44,237.37,12.90151452]
[1733673196813,12.77602452,237.4,237.3,1.5305]
[1733673197006,12.77602452,237.39,237.32,12.77602452]
[1733673197999,6.5772,237.45,237.34,12.77602452]
[1733673198203,12.77602452,237.44,237.37,12.77602452]
[1733673198423,12.77602452,237.43,237.36,12.77602452]
[1733673198609,5.0,237.55,237.31,0.25098]
[1733673198610,23.1579,237.5,237.4,12.77602452]
[1733673198808,12.77602452,237.48,237.41,12.77602452]
[1733673199120,12.77602452,237.47,237.4,12.77602452]
[1733673200528,12.77602452,237.45,237.38,12.77602452]
[1733673200893,15.93432452,237.47,237.4,12.77602452]
[1733673201715,12.77602452,237.46,237.39,12.77602452]
[1733673201916,15.93432452,237.47,237.39,12.77602452]
[1733673202137,12.77602452,237.48,237.41,12.77602452]
[1733673202429,6.5772,237.5,237.36,0.12549]
[1733673202430,15.93372452,237.52,237.45,12.77602452]
[1733673202793,12.77602452,237.53,237.46,12.77602452]
[1733673203003,12.77602452,237.52,237.45,12.77602452]
[1733673203726,1.665,237.54,237.48,12.77602452]
[1733673204223,14.44102452,237.54,237.47,12.77602452]
[1733673204635,9.1718,237.56,237.48,12.77602452]
[1733673204934,6.0147,237.56,237.51,12.77602452]
[1733673205231,6.0147,237.56,237.5,12.77602452]
[1733673205404,17.44022452,237.6,237.53,12.77602452]
[1733673207227,12.77602452,237.58,237.51,12.77602452]
[1733673207399,12.77602452,237.57,237.5,12.77602452]
[1733673208411,12.77602452,237.59,237.52,12.77602452]
[1733673208802,12.77602452,237.58,237.51,12.77602452]
[1733673210309,12.77602452,237.59,237.52,12.77602452]
[1733673211100,6.5098341,237.62,237.46,0.88239032]